[Event "Late-Titled-Tuesday-Blitz-June-18-2024"]
[Site "Chess.com"]
[Date "2024.06.18"]
[Round "10"]
[White "RamonManon0g"]
[Black "Boudicca64"]
[Result "1-0"]
[WhiteElo "2474"]
[BlackElo "1903"]
[TimeControl "180+1"]
[EndTime "15:54:41 PDT"]
[Termination "RamonManon0g won on time"]

1. e4 {[%clk 0:03:00.9]} 1... g6 {[%clk 0:02:57.8]} 2. d4 {[%clk 0:03:00.8]}
2... Bg7 {[%clk 0:02:56.7]} 3. Nc3 {[%clk 0:03:01]} 3... c5 {[%clk 0:02:56.3]}
4. d5 {[%clk 0:03:00.8]} 4... d6 {[%clk 0:02:55.1]} 5. Nf3 {[%clk 0:03:01]} 5...
Nf6 {[%clk 0:02:50]} 6. Be2 {[%clk 0:03:01.1]} 6... O-O {[%clk 0:02:48.7]} 7.
O-O {[%clk 0:03:01.3]} 7... a6 {[%clk 0:02:47.1]} 8. a4 {[%clk 0:03:01]} 8...
Nbd7 {[%clk 0:02:45.4]} 9. Bg5 {[%clk 0:03:00.3]} 9... Rb8 {[%clk 0:02:43.8]}
10. Re1 {[%clk 0:02:54.5]} 10... Qc7 {[%clk 0:02:35.9]} 11. Bf1 {[%clk
0:02:50.9]} 11... c4 {[%clk 0:02:34.9]} 12. a5 {[%clk 0:02:44.7]} 12... Nc5
{[%clk 0:02:31.5]} 13. e5 {[%clk 0:02:40.3]} 13... dxe5 {[%clk 0:02:20.8]} 14.
Nxe5 {[%clk 0:02:41.2]} 14... Nfe4 {[%clk 0:02:11.9]} 15. Nxe4 {[%clk
0:02:36.6]} 15... Nxe4 {[%clk 0:02:02.7]} 16. Rxe4 {[%clk 0:02:32.9]} 16... Bxe5
{[%clk 0:02:01.9]} 17. Rxc4 {[%clk 0:02:23.7]} 17... Qd6 {[%clk 0:01:45.5]} 18.
Rh4 {[%clk 0:02:03.5]} 18... Bxb2 {[%clk 0:01:36.4]} 19. Rb1 {[%clk 0:02:01.5]}
19... Bf6 {[%clk 0:01:32.5]} 20. Rb6 {[%clk 0:01:55.7]} 20... Qc5 {[%clk
0:01:16.5]} 21. Bxf6 {[%clk 0:01:48.6]} 21... exf6 {[%clk 0:00:52.9]} 22. Rxf6
{[%clk 0:01:48.2]} 22... Qe7 {[%clk 0:00:19.9]} 23. Qd4 {[%clk 0:01:31.3]} 23...
Bf5 {[%clk 0:00:14.8]} 24. d6 {[%clk 0:01:24.1]} 24... Qd7 {[%clk 0:00:10.4]}
25. h3 {[%clk 0:01:16.2]} 25... Rbe8 {[%clk 0:00:08.5]} 26. Bc4 {[%clk
0:01:12.3]} 26... Re1+ {[%clk 0:00:04.2]} 27. Kh2 {[%clk 0:01:12.7]} 27... Be6
{[%clk 0:00:01]} 28. Bb5 {[%clk 0:01:01.6]} 1-0

[Event "Late-Titled-Tuesday-Blitz-June-18-2024"]
[Site "Chess.com"]
[Date "2024.06.18"]
[Round "10"]
[White "esskeettit"]
[Black "yaguigor"]
[Result "1-0"]
[WhiteElo "2525"]
[BlackElo "2622"]
[TimeControl "180+1"]
[EndTime "15:54:55 PDT"]
[Termination "esskeettit won by checkmate"]

1. d4 {[%clk 0:03:00.9]} 1... d5 {[%clk 0:02:53.8]} 2. c4 {[%clk 0:02:53]} 2...
e6 {[%clk 0:02:51]} 3. Nc3 {[%clk 0:02:47.7]} 3... c6 {[%clk 0:02:50]} 4. e3
{[%clk 0:02:42.1]} 4... Nf6 {[%clk 0:02:48.7]} 5. Nf3 {[%clk 0:02:41]} 5... Nbd7
{[%clk 0:02:48.1]} 6. Qc2 {[%clk 0:02:40.7]} 6... Bd6 {[%clk 0:02:46.8]} 7. b3
{[%clk 0:02:40.6]} 7... O-O {[%clk 0:02:46.1]} 8. Be2 {[%clk 0:02:41.1]} 8... b6
{[%clk 0:02:45.7]} 9. O-O {[%clk 0:02:40.6]} 9... Bb7 {[%clk 0:02:46.2]} 10. Bb2
{[%clk 0:02:41.2]} 10... Qe7 {[%clk 0:02:46.4]} 11. e4 {[%clk 0:02:40.8]} 11...
Nxe4 {[%clk 0:02:45.2]} 12. Nxe4 {[%clk 0:02:41.7]} 12... dxe4 {[%clk
0:02:45.5]} 13. Qxe4 {[%clk 0:02:42.6]} 13... Nf6 {[%clk 0:02:45.5]} 14. Qc2
{[%clk 0:02:41.5]} 14... c5 {[%clk 0:02:45.7]} 15. dxc5 {[%clk 0:02:32.9]} 15...
Bxc5 {[%clk 0:02:44.3]} 16. Ng5 {[%clk 0:02:33.1]} 16... Rfd8 {[%clk 0:02:13.1]}
17. Bxf6 {[%clk 0:02:08.7]} 17... Qxf6 {[%clk 0:02:11.7]} 18. Qxh7+ {[%clk
0:02:09.2]} 18... Kf8 {[%clk 0:02:11.8]} 19. Bf3 {[%clk 0:02:09.2]} 19... Qxg5
{[%clk 0:01:34.6]} 20. Bxb7 {[%clk 0:02:05]} 20... Rab8 {[%clk 0:01:35.1]} 21.
Bf3 {[%clk 0:02:00.9]} 21... Ke7 {[%clk 0:01:31.4]} 22. Qe4 {[%clk 0:01:54.9]}
22... Rd2 {[%clk 0:01:29.4]} 23. a3 {[%clk 0:01:47.2]} 23... a5 {[%clk
0:01:27.1]} 24. b4 {[%clk 0:01:45]} 24... axb4 {[%clk 0:00:33.5]} 25. axb4
{[%clk 0:01:45.9]} 25... Bxb4 {[%clk 0:00:33.4]} 26. Ra7+ {[%clk 0:01:40]} 26...
Kf6 {[%clk 0:00:33.7]} 27. h4 {[%clk 0:01:33.8]} 27... Qf5 {[%clk 0:00:30.6]}
28. Qe3 {[%clk 0:01:03.7]} 28... Rbd8 {[%clk 0:00:23.8]} 29. Be4 {[%clk
0:01:02.6]} 29... Bc5 {[%clk 0:00:19.1]} 30. Qc3+ {[%clk 0:00:47.1]} 30... Bd4
{[%clk 0:00:14.9]} 31. Qxd2 {[%clk 0:00:46.9]} 31... Qxe4 {[%clk 0:00:13.5]} 32.
Qg5# {[%clk 0:00:46.3]} 1-0

[Event "Late-Titled-Tuesday-Blitz-June-18-2024"]
[Site "Chess.com"]
[Date "2024.06.18"]
[Round "10"]
[White "egnfanclub"]
[Black "Hakiki_satranc"]
[Result "1-0"]
[WhiteElo "2352"]
[BlackElo "2423"]
[TimeControl "180+1"]
[EndTime "15:55:03 PDT"]
[Termination "egnfanclub won on time"]

1. e4 {[%clk 0:03:00.9]} 1... e6 {[%clk 0:03:00.9]} 2. d4 {[%clk 0:03:00.4]}
2... d5 {[%clk 0:03:01.4]} 3. Nc3 {[%clk 0:03:00.6]} 3... h6 {[%clk 0:03:00.1]}
4. Nf3 {[%clk 0:02:59.1]} 4... Bb4 {[%clk 0:02:55.8]} 5. Bd3 {[%clk 0:02:55.2]}
5... Nf6 {[%clk 0:02:53.3]} 6. e5 {[%clk 0:02:54.9]} 6... Nfd7 {[%clk
0:02:53.2]} 7. a3 {[%clk 0:02:53.8]} 7... Bxc3+ {[%clk 0:02:31.2]} 8. bxc3
{[%clk 0:02:54.7]} 8... b6 {[%clk 0:02:31.7]} 9. Qe2 {[%clk 0:02:53.1]} 9... c5
{[%clk 0:02:28.8]} 10. c4 {[%clk 0:02:38.1]} 10... Bb7 {[%clk 0:02:18.4]} 11.
cxd5 {[%clk 0:02:35.3]} 11... Bxd5 {[%clk 0:02:14.8]} 12. c4 {[%clk 0:02:35.1]}
12... Bb7 {[%clk 0:01:55.6]} 13. d5 {[%clk 0:02:03.8]} 13... exd5 {[%clk
0:01:56.5]} 14. e6 {[%clk 0:02:04.1]} 14... Nf6 {[%clk 0:01:46.4]} 15. exf7+
{[%clk 0:02:03.9]} 15... Kxf7 {[%clk 0:01:43.8]} 16. Ne5+ {[%clk 0:02:03.9]}
16... Kg8 {[%clk 0:01:38.7]} 17. O-O {[%clk 0:01:51.6]} 17... Nbd7 {[%clk
0:01:20.2]} 18. Ng6 {[%clk 0:01:48.7]} 18... Qe8 {[%clk 0:01:05.7]} 19. Ne7+
{[%clk 0:01:19.6]} 19... Kf8 {[%clk 0:01:02.2]} 20. Re1 {[%clk 0:01:19.7]} 20...
dxc4 {[%clk 0:00:17.6]} 21. Ng6+ {[%clk 0:01:04.8]} 21... Kg8 {[%clk 0:00:15.5]}
22. Bxc4+ {[%clk 0:01:04]} 22... Kh7 {[%clk 0:00:14.8]} 23. Nxh8 {[%clk
0:01:01.9]} 23... Qxe2 {[%clk 0:00:13.8]} 24. Rxe2 {[%clk 0:01:02.8]} 24... Kxh8
{[%clk 0:00:11.2]} 25. Re7 {[%clk 0:01:01]} 25... Re8 {[%clk 0:00:04.7]} 26.
Rxe8+ {[%clk 0:01:00.7]} 26... Nxe8 {[%clk 0:00:05.6]} 27. Bf4 {[%clk
0:00:59.5]} 27... Nef6 {[%clk 0:00:03.4]} 28. Re1 {[%clk 0:00:56.9]} 28... g5
{[%clk 0:00:03.4]} 29. Bd6 {[%clk 0:00:52.7]} 29... Kg7 {[%clk 0:00:03.4]} 30.
Re7+ {[%clk 0:00:51.9]} 30... Kg6 {[%clk 0:00:02.9]} 31. g4 {[%clk 0:00:48.4]}
1-0

[Event "Late-Titled-Tuesday-Blitz-June-18-2024"]
[Site "Chess.com"]
[Date "2024.06.18"]
[Round "10"]
[White "amylazy"]
[Black "WilsonPalencia21"]
[Result "0-1"]
[WhiteElo "2486"]
[BlackElo "2609"]
[TimeControl "180+1"]
[EndTime "15:55:05 PDT"]
[Termination "WilsonPalencia21 won by resignation"]

1. d4 {[%clk 0:02:53.9]} 1... Nf6 {[%clk 0:02:04.2]} 2. Nf3 {[%clk 0:02:42.8]}
2... c5 {[%clk 0:02:01.7]} 3. d5 {[%clk 0:02:36.6]} 3... g6 {[%clk 0:02:01.5]}
4. Nc3 {[%clk 0:02:27]} 4... Bg7 {[%clk 0:02:02.4]} 5. e4 {[%clk 0:02:26]} 5...
d6 {[%clk 0:02:02.8]} 6. Bb5+ {[%clk 0:02:23.6]} 6... Nfd7 {[%clk 0:02:02.7]} 7.
a4 {[%clk 0:02:22.9]} 7... Na6 {[%clk 0:02:02.3]} 8. O-O {[%clk 0:02:22.6]} 8...
Nc7 {[%clk 0:02:02.3]} 9. Be2 {[%clk 0:02:19.1]} 9... O-O {[%clk 0:02:00]} 10.
Bf4 {[%clk 0:02:18.7]} 10... b6 {[%clk 0:01:58.2]} 11. h3 {[%clk 0:02:13.6]}
11... a6 {[%clk 0:01:52.8]} 12. Qd2 {[%clk 0:02:12]} 12... Re8 {[%clk
0:01:52.1]} 13. Rfe1 {[%clk 0:02:11.4]} 13... Rb8 {[%clk 0:01:51.6]} 14. Bh6
{[%clk 0:02:07.9]} 14... Bh8 {[%clk 0:01:50.8]} 15. Qf4 {[%clk 0:02:04.8]} 15...
b5 {[%clk 0:01:45.4]} 16. axb5 {[%clk 0:02:03.3]} 16... axb5 {[%clk 0:01:45.4]}
17. Qh4 {[%clk 0:02:03.3]} 17... b4 {[%clk 0:01:38.1]} 18. Nd1 {[%clk
0:02:02.9]} 18... e5 {[%clk 0:01:31.9]} 19. Bg5 {[%clk 0:02:01.8]} 19... f6
{[%clk 0:01:31.4]} 20. Be3 {[%clk 0:01:58.7]} 20... f5 {[%clk 0:01:23.1]} 21.
exf5 {[%clk 0:01:58.7]} 21... Qxh4 {[%clk 0:01:15.2]} 22. Nxh4 {[%clk
0:01:58.8]} 22... Bf6 {[%clk 0:01:15.5]} 23. Nf3 {[%clk 0:01:44.8]} 23... gxf5
{[%clk 0:01:15.3]} 24. c4 {[%clk 0:01:43.7]} 24... f4 {[%clk 0:01:07.5]} 25. Bc1
{[%clk 0:01:41.2]} 25... Nb6 {[%clk 0:01:03]} 26. Nd2 {[%clk 0:01:37.9]} 26...
Bf5 {[%clk 0:01:01.5]} 27. Ra7 {[%clk 0:01:36.8]} 27... Re7 {[%clk 0:00:58.4]}
28. Bg4 {[%clk 0:01:36.5]} 28... Bd3 {[%clk 0:00:45.6]} 29. b3 {[%clk
0:01:34.4]} 29... Ncxd5 {[%clk 0:00:39.6]} 30. Rxe7 {[%clk 0:01:21.8]} 30...
Nxe7 {[%clk 0:00:39.6]} 31. Ne4 {[%clk 0:01:13.2]} 31... Bxe4 {[%clk 0:00:38.6]}
32. Rxe4 {[%clk 0:01:14.1]} 32... Ra8 {[%clk 0:00:37.3]} 33. Bb2 {[%clk
0:01:12.6]} 33... Ra2 {[%clk 0:00:35.8]} 34. Re2 {[%clk 0:01:09.4]} 34... Nc6
{[%clk 0:00:33.9]} 35. Kh2 {[%clk 0:01:03.4]} 35... Na5 {[%clk 0:00:33.5]} 36.
Rd2 {[%clk 0:01:00.7]} 36... Be7 {[%clk 0:00:32.6]} 37. Be6+ {[%clk 0:00:54]}
37... Kf8 {[%clk 0:00:32]} 38. g3 {[%clk 0:00:49.3]} 38... Nxb3 {[%clk
0:00:30.2]} 39. Re2 {[%clk 0:00:49.4]} 39... Nd4 {[%clk 0:00:27]} 40. Bxd4
{[%clk 0:00:47.8]} 40... Rxe2 {[%clk 0:00:26.1]} 0-1

[Event "Late-Titled-Tuesday-Blitz-June-18-2024"]
[Site "Chess.com"]
[Date "2024.06.18"]
[Round "10"]
[White "duone"]
[Black "aranibos"]
[Result "1-0"]
[WhiteElo "2414"]
[BlackElo "2260"]
[TimeControl "180+1"]
[EndTime "15:55:12 PDT"]
[Termination "duone won by checkmate"]

1. e4 {[%clk 0:03:00.9]} 1... c6 {[%clk 0:02:58.9]} 2. d4 {[%clk 0:02:57.3]}
2... d5 {[%clk 0:02:59]} 3. e5 {[%clk 0:02:58.2]} 3... c5 {[%clk 0:02:59]} 4.
dxc5 {[%clk 0:02:57.7]} 4... Nc6 {[%clk 0:02:59.1]} 5. Nf3 {[%clk 0:02:55.6]}
5... Bg4 {[%clk 0:02:58.7]} 6. Bb5 {[%clk 0:02:54.2]} 6... e6 {[%clk 0:02:56]}
7. b4 {[%clk 0:02:52.2]} 7... Qc7 {[%clk 0:02:41.3]} 8. c4 {[%clk 0:02:49.4]}
8... dxc4 {[%clk 0:02:34.1]} 9. O-O {[%clk 0:02:43.2]} 9... Rd8 {[%clk 0:02:21]}
10. Qe2 {[%clk 0:02:39.8]} 10... Bxf3 {[%clk 0:02:12.2]} 11. Qxf3 {[%clk
0:02:39.6]} 11... Ne7 {[%clk 0:02:10.5]} 12. Bb2 {[%clk 0:02:35.2]} 12... Ng6
{[%clk 0:01:55.8]} 13. Na3 {[%clk 0:02:25.8]} 13... Be7 {[%clk 0:01:54.5]} 14.
Nxc4 {[%clk 0:02:24.5]} 14... O-O {[%clk 0:01:55]} 15. Bxc6 {[%clk 0:02:23.8]}
15... bxc6 {[%clk 0:01:54.3]} 16. Nd6 {[%clk 0:02:24]} 16... f6 {[%clk
0:01:40.6]} 17. Qb3 {[%clk 0:02:11.8]} 17... Qd7 {[%clk 0:00:56.7]} 18. f4
{[%clk 0:02:10.4]} 18... Bxd6 {[%clk 0:00:54.5]} 19. exd6 {[%clk 0:02:07.9]}
19... Kh8 {[%clk 0:00:52.5]} 20. Rae1 {[%clk 0:02:06.4]} 20... Rfe8 {[%clk
0:00:50.6]} 21. Re4 {[%clk 0:01:53.3]} 21... a6 {[%clk 0:00:41.2]} 22. Rfe1
{[%clk 0:01:52.9]} 22... Nf8 {[%clk 0:00:40.3]} 23. Qc3 {[%clk 0:01:42.2]} 23...
Rb8 {[%clk 0:00:30.2]} 24. R1e3 {[%clk 0:01:30.4]} 24... Qf7 {[%clk 0:00:26.2]}
25. Qc4 {[%clk 0:01:23.7]} 25... Qb7 {[%clk 0:00:19.4]} 26. a3 {[%clk
0:01:21.9]} 26... Qb5 {[%clk 0:00:19.2]} 27. Qxb5 {[%clk 0:01:19.1]} 27... axb5
{[%clk 0:00:19]} 28. f5 {[%clk 0:01:15.7]} 28... e5 {[%clk 0:00:17.4]} 29. g4
{[%clk 0:01:13.2]} 29... Nd7 {[%clk 0:00:17.6]} 30. h4 {[%clk 0:01:13.2]} 30...
Kg8 {[%clk 0:00:17.7]} 31. g5 {[%clk 0:01:13.7]} 31... Kf7 {[%clk 0:00:17.1]}
32. Kf2 {[%clk 0:01:14.3]} 32... Ra8 {[%clk 0:00:16.6]} 33. Kf3 {[%clk
0:01:14.7]} 33... Ra4 {[%clk 0:00:12.1]} 34. Kg4 {[%clk 0:01:13.7]} 34... g6
{[%clk 0:00:06.1]} 35. h5 {[%clk 0:01:12.6]} 35... gxf5+ {[%clk 0:00:05.3]} 36.
Kxf5 {[%clk 0:01:11.9]} 36... Rg8 {[%clk 0:00:05.8]} 37. gxf6 {[%clk 0:01:06.6]}
37... Rg2 {[%clk 0:00:05.1]} 38. Bxe5 {[%clk 0:01:03.3]} 38... Rf2+ {[%clk
0:00:04.3]} 39. Bf4 {[%clk 0:01:02.7]} 39... Nxf6 {[%clk 0:00:02.9]} 40. Re7+
{[%clk 0:01:02.7]} 40... Kf8 {[%clk 0:00:02.3]} 41. Kxf6 {[%clk 0:01:01.6]}
41... Rxf4+ {[%clk 0:00:02.5]} 42. Kg5 {[%clk 0:01:02]} 42... Rf7 {[%clk
0:00:01.9]} 43. Re8+ {[%clk 0:01:01.5]} 43... Kg7 {[%clk 0:00:01.6]} 44. h6#
{[%clk 0:01:02.4]} 1-0

[Event "Late-Titled-Tuesday-Blitz-June-18-2024"]
[Site "Chess.com"]
[Date "2024.06.18"]
[Round "10"]
[White "noblerone"]
[Black "Good_Knight_Kiss"]
[Result "1-0"]
[WhiteElo "2519"]
[BlackElo "2377"]
[TimeControl "180+1"]
[EndTime "15:55:16 PDT"]
[Termination "noblerone won by checkmate"]

1. d4 {[%clk 0:03:00.9]} 1... Nf6 {[%clk 0:02:59.1]} 2. Nf3 {[%clk 0:02:57.3]}
2... g6 {[%clk 0:02:59.1]} 3. Bg5 {[%clk 0:02:57.4]} 3... Bg7 {[%clk 0:02:57.9]}
4. Nbd2 {[%clk 0:02:57.9]} 4... d6 {[%clk 0:02:57.4]} 5. e3 {[%clk 0:02:58.5]}
5... h6 {[%clk 0:02:56.9]} 6. Bxf6 {[%clk 0:02:57.6]} 6... Bxf6 {[%clk
0:02:56.5]} 7. Bc4 {[%clk 0:02:58.5]} 7... Nc6 {[%clk 0:02:53.7]} 8. c3 {[%clk
0:02:58.8]} 8... O-O {[%clk 0:02:53.1]} 9. O-O {[%clk 0:02:58.1]} 9... e5 {[%clk
0:02:52.7]} 10. Qc2 {[%clk 0:02:56.9]} 10... Kh7 {[%clk 0:02:39.6]} 11. Ne4
{[%clk 0:02:48.7]} 11... Bg7 {[%clk 0:02:39.4]} 12. Ng3 {[%clk 0:02:49.1]} 12...
f5 {[%clk 0:02:35.3]} 13. dxe5 {[%clk 0:02:47.7]} 13... dxe5 {[%clk 0:02:34.9]}
14. Rad1 {[%clk 0:02:46]} 14... Qe7 {[%clk 0:02:34.5]} 15. h3 {[%clk 0:02:25.8]}
15... Na5 {[%clk 0:02:21.7]} 16. Be2 {[%clk 0:02:20.8]} 16... Be6 {[%clk
0:02:20.9]} 17. b3 {[%clk 0:02:14.9]} 17... Nc6 {[%clk 0:02:11.8]} 18. Bb5
{[%clk 0:02:11.8]} 18... Qc5 {[%clk 0:02:07.5]} 19. Qe2 {[%clk 0:02:01.4]} 19...
a6 {[%clk 0:01:59.9]} 20. Bc4 {[%clk 0:01:52]} 20... Bxc4 {[%clk 0:01:56]} 21.
bxc4 {[%clk 0:01:51.2]} 21... Rad8 {[%clk 0:01:51.6]} 22. h4 {[%clk 0:01:50.8]}
22... e4 {[%clk 0:01:27.1]} 23. Nd4 {[%clk 0:01:47.2]} 23... Qe5 {[%clk
0:00:53.5]} 24. Rd2 {[%clk 0:01:30.6]} 24... h5 {[%clk 0:00:49.9]} 25. Rfd1
{[%clk 0:01:29.6]} 25... Na5 {[%clk 0:00:45.3]} 26. Ne6 {[%clk 0:01:18.7]} 26...
Qxe6 {[%clk 0:00:32.1]} 27. Rxd8 {[%clk 0:01:18.3]} 27... Rf7 {[%clk 0:00:20.4]}
28. c5 {[%clk 0:01:12.8]} 28... Nc4 {[%clk 0:00:18.2]} 29. Nxh5 {[%clk
0:01:09.1]} 29... Bxc3 {[%clk 0:00:15]} 30. Nf4 {[%clk 0:01:06.7]} 30... Qf6
{[%clk 0:00:11.1]} 31. h5 {[%clk 0:00:57.2]} 31... g5 {[%clk 0:00:11.1]} 32. Ng6
{[%clk 0:00:57.7]} 32... Qe6 {[%clk 0:00:06.8]} 33. Nf8+ {[%clk 0:00:52.6]}
33... Rxf8 {[%clk 0:00:03.3]} 34. Rxf8 {[%clk 0:00:53.5]} 34... Ne5 {[%clk
0:00:02.5]} 35. Rdd8 {[%clk 0:00:50.7]} 35... Qc4 {[%clk 0:00:01.2]} 36. Rd7+
{[%clk 0:00:45.5]} 36... Kh6 {[%clk 0:00:01]} 37. Rh8# {[%clk 0:00:44.8]} 1-0

[Event "Late-Titled-Tuesday-Blitz-June-18-2024"]
[Site "Chess.com"]
[Date "2024.06.18"]
[Round "10"]
[White "rasmussvane"]
[Black "DeTimmerman"]
[Result "1-0"]
[WhiteElo "2980"]
[BlackElo "2757"]
[TimeControl "180+1"]
[EndTime "15:55:19 PDT"]
[Termination "rasmussvane won by resignation"]

1. Nf3 {[%clk 0:03:00.9]} 1... Nf6 {[%clk 0:02:59.6]} 2. g3 {[%clk 0:03:00]}
2... e6 {[%clk 0:03:00]} 3. Bg2 {[%clk 0:02:59.8]} 3... d5 {[%clk 0:03:00.9]} 4.
O-O {[%clk 0:02:59.9]} 4... Be7 {[%clk 0:03:01.8]} 5. c4 {[%clk 0:03:00.4]} 5...
O-O {[%clk 0:03:02.7]} 6. b3 {[%clk 0:02:57.1]} 6... c5 {[%clk 0:03:02.9]} 7.
cxd5 {[%clk 0:02:56.8]} 7... Nxd5 {[%clk 0:03:02.5]} 8. Nc3 {[%clk 0:02:56.2]}
8... Nc6 {[%clk 0:02:45.3]} 9. Bb2 {[%clk 0:02:52.6]} 9... b6 {[%clk 0:02:37.8]}
10. Nxd5 {[%clk 0:02:52.3]} 10... exd5 {[%clk 0:02:38.7]} 11. d4 {[%clk
0:02:51.9]} 11... Bb7 {[%clk 0:02:37.1]} 12. Rc1 {[%clk 0:02:50.4]} 12... Rc8
{[%clk 0:02:35.9]} 13. Qd2 {[%clk 0:02:42.4]} 13... Nxd4 {[%clk 0:02:12.1]} 14.
Nxd4 {[%clk 0:02:39.4]} 14... cxd4 {[%clk 0:02:13]} 15. Bxd4 {[%clk 0:02:36.2]}
15... Qd7 {[%clk 0:01:24.4]} 16. Qb2 {[%clk 0:02:02.3]} 16... f6 {[%clk
0:01:23.9]} 17. Bf3 {[%clk 0:01:23.7]} 17... Rxc1 {[%clk 0:01:21.6]} 18. Rxc1
{[%clk 0:01:23.4]} 18... Rc8 {[%clk 0:01:22.5]} 19. Kg2 {[%clk 0:01:22.5]} 19...
Rxc1 {[%clk 0:01:07.3]} 20. Qxc1 {[%clk 0:01:23.4]} 20... Qc6 {[%clk 0:01:07.7]}
21. Qe3 {[%clk 0:01:18.3]} 21... Kf7 {[%clk 0:01:03.5]} 22. Bh5+ {[%clk
0:01:16.1]} 22... g6 {[%clk 0:01:03.4]} 23. Bf3 {[%clk 0:01:14.5]} 23... Bf8
{[%clk 0:01:00.3]} 24. h4 {[%clk 0:01:14.6]} 24... Qe6 {[%clk 0:00:59.8]} 25.
Qf4 {[%clk 0:01:11.1]} 25... Qd6 {[%clk 0:00:56.7]} 26. Qc1 {[%clk 0:01:03.5]}
26... Qc6 {[%clk 0:00:55.2]} 27. Qd2 {[%clk 0:01:03]} 27... Qe6 {[%clk
0:00:55.4]} 28. h5 {[%clk 0:01:00.5]} 28... Bc8 {[%clk 0:00:52.1]} 29. Qc2
{[%clk 0:00:55.7]} 29... Qh3+ {[%clk 0:00:35.4]} 30. Kg1 {[%clk 0:00:54.5]}
30... Be6 {[%clk 0:00:36.3]} 31. Qc7+ {[%clk 0:00:49.2]} 31... Be7 {[%clk
0:00:37]} 32. hxg6+ {[%clk 0:00:45.8]} 32... hxg6 {[%clk 0:00:37.9]} 33. Qxa7
{[%clk 0:00:43.5]} 33... Qf5 {[%clk 0:00:12.7]} 34. Bxb6 {[%clk 0:00:40.9]}
34... Qb1+ {[%clk 0:00:12.6]} 35. Kg2 {[%clk 0:00:40.5]} 35... Qc2 {[%clk
0:00:13.2]} 36. Bd8 {[%clk 0:00:37.4]} 1-0

[Event "Late-Titled-Tuesday-Blitz-June-18-2024"]
[Site "Chess.com"]
[Date "2024.06.18"]
[Round "10"]
[White "SchmakAttack"]
[Black "ChessWarrior7197"]
[Result "1-0"]
[WhiteElo "2851"]
[BlackElo "3132"]
[TimeControl "180+1"]
[EndTime "15:55:22 PDT"]
[Termination "SchmakAttack won by resignation"]

1. Nf3 {[%clk 0:03:00.5]} 1... Nc6 {[%clk 0:03:00.2]} 2. e4 {[%clk 0:02:57.7]}
2... d5 {[%clk 0:02:58.1]} 3. exd5 {[%clk 0:02:55.9]} 3... Qxd5 {[%clk 0:02:59]}
4. Nc3 {[%clk 0:02:54]} 4... Qd6 {[%clk 0:02:59.6]} 5. d4 {[%clk 0:02:44.5]}
5... Nf6 {[%clk 0:02:59.6]} 6. Nb5 {[%clk 0:02:36]} 6... Qd8 {[%clk 0:02:58.6]}
7. c4 {[%clk 0:02:35.9]} 7... a6 {[%clk 0:02:53.9]} 8. Nc3 {[%clk 0:02:35.8]}
8... Bg4 {[%clk 0:02:54.5]} 9. d5 {[%clk 0:02:15.4]} 9... Ne5 {[%clk 0:02:52.9]}
10. Be2 {[%clk 0:02:11.1]} 10... Bxf3 {[%clk 0:02:51.2]} 11. Bxf3 {[%clk
0:02:11.2]} 11... e6 {[%clk 0:02:44.9]} 12. Bf4 {[%clk 0:01:55.1]} 12... Ng6
{[%clk 0:02:31.3]} 13. Qa4+ {[%clk 0:01:43]} 13... Nd7 {[%clk 0:01:58.8]} 14.
dxe6 {[%clk 0:01:31.8]} 14... fxe6 {[%clk 0:01:58.1]} 15. Bxb7 {[%clk
0:01:09.7]} 15... Nxf4 {[%clk 0:01:54.8]} 16. O-O-O {[%clk 0:01:05.2]} 16... Rb8
{[%clk 0:01:32.9]} 17. Rxd7 {[%clk 0:01:02.5]} 17... Qxd7 {[%clk 0:01:21.3]} 18.
Bc6 {[%clk 0:01:01.8]} 18... Nd3+ {[%clk 0:01:21.1]} 19. Kb1 {[%clk 0:00:47.6]}
19... Nxb2 {[%clk 0:01:19.6]} 20. Bxd7+ {[%clk 0:00:45.9]} 20... Kd8 {[%clk
0:01:20.2]} 21. Qc6 {[%clk 0:00:39.9]} 21... Rb6 {[%clk 0:01:13.6]} 22. Qa8+
{[%clk 0:00:19.5]} 22... Kxd7 {[%clk 0:01:13.1]} 23. Kc2 {[%clk 0:00:20]} 23...
Nxc4 {[%clk 0:01:08.4]} 24. Rd1+ {[%clk 0:00:19.8]} 24... Nd6 {[%clk 0:01:09.1]}
25. Ne4 {[%clk 0:00:17.6]} 25... g5 {[%clk 0:00:53.8]} 26. Nxd6 {[%clk
0:00:16.1]} 26... Rc6+ {[%clk 0:00:48.2]} 27. Nc4+ {[%clk 0:00:15.8]} 27... Bd6
{[%clk 0:00:48.4]} 28. Qxh8 {[%clk 0:00:15.8]} 28... Rxc4+ {[%clk 0:00:49.3]}
29. Kb3 {[%clk 0:00:16.2]} 29... Rb4+ {[%clk 0:00:49.9]} 30. Kc3 {[%clk
0:00:16.8]} 30... Rf4 {[%clk 0:00:49.8]} 31. Qxh7+ {[%clk 0:00:16.9]} 31... Kc6
{[%clk 0:00:50.4]} 32. f3 {[%clk 0:00:16.6]} 32... Kc5 {[%clk 0:00:48.3]} 33.
Kd3 {[%clk 0:00:14.6]} 33... Ra4 {[%clk 0:00:45.7]} 34. Rd2 {[%clk 0:00:13.8]}
34... Bf4 {[%clk 0:00:45.3]} 35. Rc2+ {[%clk 0:00:13.9]} 35... Kb6 {[%clk
0:00:45.7]} 36. Qd7 {[%clk 0:00:13.3]} 36... Ra3+ {[%clk 0:00:44.1]} 37. Ke2
{[%clk 0:00:13.8]} 37... Bd6 {[%clk 0:00:40.9]} 38. Rc6+ {[%clk 0:00:13.3]} 1-0